bitfinex/quotes_SOLUSD_20230102
["timestamp","ask_amount","ask_price","bid_price","bid_amount"]
[1672631217831,75.45,9.9566,9.9507,20.0]
[1672631218048,75.45,9.9568,9.9507,20.0]
[1672631218264,30.0,9.9567,9.9507,20.0]
[1672631219617,75.45,9.957,9.9507,20.0]
[1672631219826,302.1,9.9662,9.9508,80.72668935]
[1672631219827,75.42,9.9597,9.9508,80.72668935]
[1672631220154,30.0,9.9596,9.9509,97.28689838]
[1672631220340,75.43,9.9595,9.951,20.0]
[1672631220550,75.43,9.9595,9.951,87.28689838]
[1672631220551,30.0,9.9594,9.951,87.28689838]
[1672631220813,75.43,9.9593,9.9511,30.0]
[1672631221082,30.0,9.9592,9.9512,20.0]
[1672631221403,30.0,9.959,9.9513,30.0]
[1672631221606,30.0,9.9588,9.9514,20.0]
[1672631221817,75.43,9.9587,9.9515,30.0]
[1672631222554,75.43,9.9587,9.9516,20.0]
[1672631223164,30.0,9.9586,9.9516,20.0]
[1672631223380,75.43,9.9585,9.9516,20.0]
[1672631224022,75.43,9.9585,9.9517,13.42342522]
[1672631224419,30.0,9.9586,9.9518,20.0]
[1672631225481,75.43,9.9587,9.9519,83.09420624]
[1672631225692,75.42,9.9603,9.952,30.0]
[1672631225905,30.0,9.9596,9.9521,20.0]
[1672631226103,75.43,9.9595,9.9522,30.0]
[1672631226573,30.0,9.9594,9.9523,20.0]
[1672631226774,75.43,9.9593,9.9523,20.0]
[1672631226971,30.0,9.9592,9.9523,20.0]
[1672631227191,30.0,9.9592,9.9522,20.0]
[1672631227706,30.0,9.9592,9.9524,11.17558196]
[1672631227906,30.0,9.9572,9.9525,20.0]
[1672631228748,30.0,9.9586,9.9525,20.0]
[1672631229071,75.43,9.9585,9.9525,20.0]
[1672631231065,30.0,9.9572,9.9525,20.0]
[1672631231780,30.0,9.9584,9.9526,13.40706243]
[1672631232008,75.44,9.9583,9.9526,13.40706243]
[1672631232221,75.44,9.9583,9.9527,20.0]
[1672631233257,23.8244854,9.9564,9.9527,20.0]
[1672631235685,23.8244854,9.9564,9.9528,11.16952222]
[1672631235905,23.8244854,9.9564,9.9529,20.0]
[1672631236948,30.0,9.9563,9.9529,20.0]
[1672631239772,30.0,9.9563,9.953,13.39979103]
[1672631240196,30.0,9.9563,9.9531,20.0]
[1672631243768,30.0,9.9563,9.9532,11.16346296]
[1672631244182,30.0,9.9563,9.9533,20.0]
[1672631247656,30.0,9.9563,9.9534,13.39252022]
[1672631247871,30.0,9.9563,9.9535,20.0]
[1672631249255,23.8244854,9.9564,9.9535,20.0]
[1672631249657,0.1568854,9.9564,9.9535,20.0]
[1672631251656,0.1568854,9.9564,9.9536,11.15740419]
[1672631251982,0.1568854,9.9564,9.9537,20.0]
[1672631255646,0.1568854,9.9564,9.9538,11.15437499]
[1672631255857,0.1568854,9.9564,9.9539,20.0]
[1672631259649,0.1568854,9.9564,9.954,13.38161509]
[1672631259863,0.1568854,9.9564,9.9541,20.0]
[1672631260698,75.52305383,9.9648,9.9542,30.0]
[1672631260906,5.69,9.97,9.9542,103.27358217]
[1672631261118,30.0,9.9667,9.9543,146.2452]
[1672631261444,30.0,9.9667,9.9545,30.0]
[1672631261653,75.37,9.9666,9.9545,30.0]
[1672631261854,30.0,9.9665,9.9546,113.46945431]
[1672631262063,30.0,9.9663,9.9547,30.0]
[1672631262277,75.36,9.9688,9.96,5.7]
[1672631262490,30.0,9.9747,9.96,5.7]
[1672631262678,30.0,9.9745,9.9602,30.0]
[1672631262895,75.31,9.9744,9.9603,20.0]
[1672631263105,72.81,9.9744,9.9603,20.0]
[1672631263315,30.0,9.9743,9.9605,30.0]
[1672631263543,75.32,9.9742,9.9605,30.0]
[1672631263748,30.0,9.9741,9.9606,84.16855431]
[1672631263963,75.32,9.974,9.9606,84.16855431]
[1672631264369,75.32,9.974,9.9608,30.0]
[1672631264593,30.0,9.9745,9.9608,30.0]
[1672631264594,75.31,9.9744,9.9608,30.0]
[1672631264794,30.0,9.9743,9.961,30.0]
[1672631265003,30.0,9.9741,9.961,30.0]
[1672631265214,75.32,9.974,9.9611,84.16855431]
[1672631265423,30.0,9.9739,9.9612,30.0]
[1672631265639,75.32,9.9738,9.9612,94.16855431]
[1672631265851,75.32,9.9738,9.9611,35.80730786]
[1672631265852,30.0,9.9737,9.9613,84.16855431]
[1672631266062,5.71,9.97,9.9613,20.0]
[1672631266271,100.1912,9.9699,9.9612,20.0]
[1672631266481,30.0,9.9698,9.9612,20.0]
[1672631266694,30.0,9.9696,9.9612,20.0]
[1672631267014,30.0,9.9694,9.9612,20.0]
[1672631267226,75.35,9.9693,9.9612,20.0]
[1672631267418,30.0,9.9692,9.9612,20.0]
[1672631267630,30.0,9.969,9.9612,20.0]
[1672631267840,75.36,9.9689,9.9613,22.08173542]
[1672631268051,30.0,9.9688,9.9613,22.08173542]
[1672631268274,75.36,9.9687,9.9614,20.0]
[1672631268485,30.0,9.9686,9.9614,20.0]
[1672631268693,30.0,9.9684,9.9614,20.0]
[1672631268894,75.36,9.9683,9.9614,20.0]
[1672631269106,30.0,9.9682,9.9614,20.0]
[1672631269328,30.0,9.968,9.9614,20.0]
[1672631270687,30.0,9.9684,9.9614,20.0]
[1672631270891,22.8047,9.9687,9.9614,20.0]
[1672631271097,22.8047,9.9687,9.9615,15.80730786]
[1672631271322,22.8047,9.9687,9.9616,20.0]
[1672631271527,22.8047,9.9687,9.9617,30.0]
[1672631271842,22.8047,9.9687,9.9618,35.80730786]
[1672631272249,22.8047,9.9687,9.9619,45.80730786]
[1672631272457,22.8047,9.9687,9.962,20.0]
[1672631272671,22.8047,9.9687,9.9621,30.0]
[1672631272886,22.8047,9.9687,9.9623,30.0]
[1672631273098,22.8047,9.9687,9.9622,20.0]
[1672631273311,22.8047,9.9687,9.9625,30.0]
[1672631273740,22.8047,9.9687,9.9626,20.0]
[1672631274476,22.8047,9.9687,9.9627,30.0]
[1672631274879,22.8047,9.9687,9.9629,30.0]
[1672631275304,22.8047,9.9687,9.963,20.0]
[1672631275511,22.8047,9.9687,9.9631,30.0]
[1672631275736,22.8047,9.9687,9.9632,20.0]
[1672631276873,22.8047,9.9687,9.9633,30.0]
[1672631277290,22.8047,9.9687,9.9634,20.0]
[1672631277938,22.8047,9.9687,9.9636,30.0]
[1672631278357,22.8047,9.9687,9.9637,20.0]
[1672631280033,22.3047,9.9687,9.9637,20.0]
[1672631280228,22.3047,9.9687,9.962,20.0]
[1672631281829,22.3047,9.9687,9.962,42.06056484]
[1672631282657,30.0,9.9686,9.962,42.06056484]
[1672631283937,27.5,9.9686,9.962,42.06056484]
[1672631284140,22.3047,9.9687,9.962,42.06056484]
[1672631284575,22.3047,9.9687,9.9621,30.0]
[1672631284879,22.3047,9.9687,9.9622,20.0]
[1672631286901,22.3047,9.9687,9.9623,45.80730786]
[1672631287287,22.3047,9.9687,9.9624,35.80730786]
[1672631287503,22.3047,9.9687,9.9625,30.0]
[1672631287709,22.3047,9.9687,9.9627,30.0]
[1672631288358,22.3047,9.9687,9.9629,30.0]
[1672631288559,22.3047,9.9687,9.9631,30.0]
[1672631288777,22.3047,9.9687,9.9632,20.0]
[1672631288979,22.3047,9.9687,9.9633,30.0]
[1672631289191,22.3047,9.9687,9.9635,30.0]
[1672631289398,22.3047,9.9687,9.9636,20.0]
[1672631289615,75.29,9.9776,9.9637,30.0]
[1672631289809,155.8816,9.9775,9.9638,20.0]
[1672631290018,231.1716,9.9774,9.964,30.0]
[1672631290227,155.8816,9.9773,9.9642,30.0]
[1672631290441,75.29,9.9772,9.9642,30.0]
[1672631290666,30.0,9.9771,9.9644,30.0]
[1672631290862,75.29,9.977,9.9646,30.0]
[1672631291190,75.29,9.977,9.9647,20.0]
[1672631291412,24.6142,9.9769,9.9648,30.0]
[1672631291592,30.0,9.9767,9.965,30.0]
[1672631291807,30.0,9.9765,9.9652,30.0]
[1672631292034,75.3,9.9764,9.9652,30.0]
[1672631292235,30.0,9.9763,9.9654,30.0]
[1672631292445,30.0,9.9761,9.9656,30.0]
[1672631292647,75.3,9.976,9.9656,30.0]
[1672631292857,30.0,9.9759,9.9657,85.41821898]
[1672631293074,75.3,9.9758,9.9657,85.41821898]
[1672631293274,30.0,9.9757,9.9659,30.0]
[1672631293490,30.0,9.9763,9.9659,30.0]
[1672631293491,11.44,9.99,9.9701,30.0]
[1672631293695,11.44,9.99,9.9702,20.0]
[1672631293696,30.0,9.986,9.9702,20.0]
[1672631293918,25.0,9.986,9.9702,20.0]
[1672631294355,199.93937546,9.99,9.9702,20.0]
[1672631294356,258.063,9.9859,9.9702,30.0]
[1672631294577,27.5,9.9858,9.9703,210.8934585]
[1672631294785,72.73,9.9857,9.9704,33.97]
[1672631294988,11.45,9.98,9.9704,13.97]
[1672631295188,192.8099,9.9799,9.9664,30.0]
[1672631295405,30.0,9.9798,9.967,30.0]
[1672631295727,30.0,9.9796,9.9672,30.0]
[1672631295943,75.27,9.9795,9.9673,16.48]
[1672631296258,30.0,9.9794,9.9674,30.0]
[1672631296570,30.0,9.9792,9.9676,30.0]
[1672631296772,30.0,9.979,9.9678,30.0]
[1672631296982,75.28,9.9789,9.9679,16.49]
[1672631297185,30.0,9.9788,9.968,30.0]
[1672631297391,30.0,9.9786,9.9681,16.49]
[1672631297603,30.0,9.9784,9.9681,40.2071]
[1672631297809,75.28,9.9783,9.9682,30.0]
[1672631298023,30.0,9.9782,9.9683,16.49]
[1672631298247,75.29,9.9781,9.9683,16.49]
[1672631298450,75.29,9.9781,9.9685,30.0]
[1672631298661,30.0,9.978,9.9686,36.49]
[1672631298868,75.29,9.9779,9.9687,30.0]
[1672631299078,75.29,9.9779,9.9688,16.49]
[1672631299288,30.0,9.9779,9.9689,20.0]
[1672631299500,23.972,9.9778,9.969,30.0]
[1672631299712,30.0,9.9776,9.9691,20.0]
[1672631300041,75.29,9.9777,9.9692,30.0]
[1672631300250,23.972,9.9775,9.9693,20.0]
[1672631300463,23.972,9.9775,9.9694,30.0]
[1672631300772,30.0,9.9774,9.9695,20.0]
[1672631300981,54.5834,9.9774,9.9695,20.0]
[1672631301720,24.5834,9.9773,9.969,30.0]
[1672631301935,30.0,9.9772,9.9691,20.0]
[1672631302134,54.5834,9.9772,9.9691,20.0]
[1672631302885,24.5834,9.9771,9.9691,20.0]
[1672631303090,24.5834,9.9771,9.9693,30.0]
[1672631303399,24.5834,9.977,9.9694,35.80730786]
[1672631303610,24.5834,9.977,9.9701,30.0]
[1672631303825,24.5834,9.9769,9.9702,20.0]
[1672631304035,24.5834,9.9769,9.9703,30.0]
[1672631304247,24.5834,9.9769,9.9704,20.0]
[1672631304450,24.5834,9.9769,9.9705,30.0]
[1672631304664,24.5834,9.9769,9.9706,20.0]
[1672631304869,24.5834,9.9769,9.9707,30.0]
[1672631305278,24.5834,9.9769,9.9708,20.0]
[1672631305492,24.5834,9.9769,9.9709,30.0]
[1672631305927,24.5834,9.9769,9.9711,30.0]
[1672631306136,24.5834,9.9769,9.9712,20.0]
[1672631306346,24.5834,9.9769,9.9713,30.0]
[1672631306770,24.5834,9.9769,9.9715,30.0]
[1672631307175,24.5834,9.9769,9.9717,30.0]
[1672631307384,24.5834,9.9769,9.9718,20.0]
[1672631307594,24.5834,9.9769,9.9719,30.0]
[1672631307805,24.5834,9.9769,9.972,20.0]
[1672631308024,24.5834,9.9769,9.972,35.80730786]
[1672631308222,24.5834,9.9769,9.9721,30.0]
[1672631308647,24.5834,9.9769,9.9722,20.0]
[1672631308962,24.5834,9.9769,9.9723,30.0]
[1672631309186,30.0,9.9836,9.9723,30.0]
[1672631309187,75.23,9.986,9.9723,30.0]
[1672631309392,24.0688,9.986,9.9724,68.2556]
[1672631309715,24.0688,9.986,9.98,11.37]
[1672631310128,24.0688,9.986,9.9802,30.0]
[1672631310347,24.0688,9.986,9.9803,20.0]
[1672631310551,24.0688,9.986,9.9804,30.0]
[1672631310875,24.0688,9.986,9.9806,30.0]
[1672631311380,24.0688,9.986,9.9808,30.0]
[1672631311594,24.0688,9.986,9.9809,20.0]
[1672631311802,24.0688,9.986,9.981,30.0]
[1672631312238,112.0179,9.9881,9.9811,20.0]
[1672631312452,112.0179,9.9881,9.9812,30.0]
[1672631312875,112.0179,9.9881,9.9813,20.0]
[1672631313374,30.0,9.988,9.9813,20.0]
[1672631313814,30.0,9.9878,9.9771,30.0]
[1672631314016,75.21,9.9877,9.9773,15.80730786]
[1672631314223,30.0,9.9876,9.9775,30.0]
[1672631314436,30.0,9.9874,9.9775,30.0]
[1672631314865,30.0,9.9874,9.9777,30.0]
[1672631315298,30.0,9.9872,9.9779,30.0]
[1672631315711,30.0,9.9872,9.978,20.0]
[1672631315908,156.8249,9.9871,9.978,20.0]
[1672631316245,30.0,9.986,9.978,20.0]
[1672631316433,75.23,9.9859,9.9769,20.0]
[1672631316643,30.0,9.9858,9.9769,20.0]
[1672631316854,30.0,9.9856,9.9769,20.0]
[1672631317063,30.0,9.9854,9.9769,20.0]
[1672631317270,75.23,9.9853,9.9769,20.0]
[1672631317485,30.0,9.9852,9.9769,20.0]
[1672631317700,30.0,9.985,9.9769,20.0]
[1672631323584,30.0,9.985,9.977,30.0]
[1672631323794,30.0,9.985,9.9771,20.0]
[1672631324423,30.0,9.9852,9.9772,30.0]
[1672631324634,30.0,9.9852,9.9773,20.0]
[1672631324844,30.0,9.9854,9.9774,30.0]
[1672631325069,30.0,9.9854,9.9773,20.0]
[1672631325698,30.0,9.9852,9.9773,20.0]
[1672631325890,30.0,9.9852,9.9746,30.0]
[1672631325891,30.0,9.985,9.9769,20.0]
[1672631326325,30.0,9.985,9.965,30.0]
[1672631326536,240.8704,9.9849,9.9701,20.0]
[1672631326745,30.0,9.9848,9.9702,30.0]
[1672631327057,30.0,9.9846,9.9703,30.0]
[1672631327262,30.0,9.9844,9.9705,30.0]
[1672631327465,75.24,9.9843,9.9705,30.0]
[1672631327673,30.0,9.9842,9.9707,30.0]
[1672631327882,30.0,9.984,9.9709,30.0]
[1672631328127,75.24,9.9839,9.9709,30.0]
[1672631328305,165.6404,9.9842,9.971,101.78306958]
[1672631328511,30.0,9.9837,9.9711,30.0]
[1672631328851,30.0,9.9835,9.9675,30.0]
[1672631329064,30.0,9.9833,9.9705,15.80730786]
[1672631329253,75.25,9.9832,9.9684,30.0]
[1672631329459,30.0,9.9831,9.9684,30.0]
[1672631329675,75.25,9.983,9.9684,45.80730786]
[1672631329885,30.0,9.9829,9.9686,30.0]
[1672631330111,75.25,9.9828,9.9686,30.0]
[1672631330304,75.25,9.9828,9.9688,30.0]
[1672631330305,30.0,9.9827,9.9688,30.0]
[1672631330516,30.0,9.9825,9.9688,30.0]
[1672631330725,75.25,9.9824,9.9689,35.80730786]
[1672631331056,30.0,9.9823,9.969,45.80730786]
[1672631331251,30.0,9.9821,9.9692,30.0]
[1672631331455,75.26,9.982,9.9692,30.0]
[1672631331669,30.0,9.9819,9.9694,30.0]
[1672631331889,30.0,9.9817,9.9696,30.0]
[1672631332112,75.26,9.9816,9.9696,30.0]
[1672631332299,30.0,9.9815,9.9698,30.0]
[1672631332500,30.0,9.9813,9.9698,30.0]
[1672631332714,75.26,9.9812,9.9699,20.0]
[1672631333044,30.0,9.9811,9.9699,20.0]
[1672631333254,30.0,9.9809,9.9699,20.0]
[1672631333460,30.0,9.9807,9.97,30.0]
[1672631333664,75.27,9.9806,9.9702,30.0]
[1672631333879,235.1833,9.9806,9.9704,30.0]
[1672631334108,159.9133,9.9806,9.9704,30.0]
[1672631334314,75.27,9.9805,9.9706,30.0]
[1672631334528,235.1833,9.9805,9.9707,20.0]
[1672631334738,235.1833,9.9805,9.9708,30.0]
[1672631335169,159.9133,9.9804,9.971,30.0]
[1672631335379,159.9133,9.9804,9.9711,20.0]
[1672631335577,75.27,9.9803,9.9712,30.0]
[1672631335789,99.2142,9.9803,9.9714,30.0]
[1672631336329,99.2142,9.9803,9.9716,30.0]
[1672631336538,23.4457,9.9802,9.9717,20.0]
[1672631336856,23.4457,9.9802,9.9718,30.0]
[1672631337065,23.4457,9.9801,9.9718,30.0]
[1672631337253,23.4457,9.9801,9.9719,35.80730786]
[1672631337675,23.4457,9.98,9.972,45.80730786]
[1672631337900,23.4457,9.98,9.9722,30.0]
[1672631338214,23.4457,9.98,9.9723,15.80730786]
[1672631338530,23.4457,9.9799,9.9724,30.0]
[1672631338734,23.4457,9.9799,9.9725,20.0]
[1672631338954,23.4457,9.9798,9.9725,20.0]
[1672631342608,30.0,9.9797,9.9725,20.0]
[1672631342847,30.0,9.9797,9.9721,20.0]
[1672631342848,105.27,9.9797,9.9721,20.0]
[1672631343254,30.0,9.9795,9.9715,20.0]
[1672631343465,75.28,9.9794,9.9715,20.0]
[1672631343673,30.0,9.9793,9.9715,20.0]
[1672631343886,30.0,9.9791,9.9697,20.0]
[1672631344106,75.28,9.979,9.9696,30.0]
[1672631344297,75.28,9.9791,9.9697,20.0]
[1672631344502,75.28,9.9791,9.9698,30.0]
[1672631344718,109.198,9.979,9.97,30.0]
[1672631344933,109.198,9.979,9.9702,30.0]
[1672631345351,109.198,9.979,9.9704,30.0]
[1672631345571,24.0439,9.9789,9.9704,30.0]
[1672631345781,99.3239,9.9789,9.9706,30.0]
[1672631346184,54.1419,9.9788,9.9707,20.0]
[1672631346629,30.0,9.9786,9.9707,20.0]
[1672631346922,30.0,9.9784,9.9707,20.0]
[1672631347362,24.1419,9.9783,9.9707,20.0]
[1672631348307,54.1419,9.9782,9.9707,20.0]
[1672631348915,24.1419,9.9781,9.9707,20.0]
[1672631349126,30.0,9.978,9.9707,20.0]
[1672631349669,53.5213,9.978,9.9707,20.0]
[1672631350184,23.5213,9.978,9.9707,20.0]
[1672631351253,23.5213,9.978,9.9702,30.0]
[1672631351254,23.5213,9.978,9.9703,20.0]
[1672631351674,23.5213,9.9779,9.9703,20.0]
[1672631352417,30.0,9.9777,9.9703,20.0]
[1672631352922,75.29,9.9776,9.9689,20.0]
[1672631353137,30.0,9.9775,9.9681,20.0]
[1672631353363,30.0,9.9773,9.9681,20.0]
[1672631353578,75.29,9.9772,9.9681,20.0]
[1672631353970,54.1754,9.9771,9.964,30.0]
[1672631354184,54.1754,9.9771,9.9565,74.98285212]
[1672631354185,75.29,9.977,9.9601,32.44796285]
[1672631354417,260.4293,9.977,9.9602,20.0]
[1672631354611,260.4293,9.977,9.9603,30.0]
[1672631354937,30.0,9.9769,9.9605,30.0]
[1672631355145,75.3,9.9768,9.9606,20.0]
[1672631355462,30.0,9.9767,9.9607,30.0]
[1672631355658,30.0,9.9765,9.9607,30.0]
[1672631355873,75.3,9.9764,9.9608,20.0]
[1672631356210,30.0,9.9763,9.9609,30.0]
[1672631356395,75.3,9.9762,9.9609,30.0]
[1672631356611,30.0,9.9761,9.961,16.51]
[1672631356812,75.3,9.976,9.9612,30.0]
[1672631357017,230.5932,9.976,9.9614,30.0]
[1672631357227,30.0,9.9759,9.9615,20.0]
[1672631357459,30.0,9.9757,9.9616,30.0]
[1672631357773,30.0,9.9755,9.9617,85.97576172]
[1672631357970,75.31,9.9754,9.9617,85.97576172]
[1672631358184,30.0,9.9753,9.9618,30.0]
[1672631358409,30.0,9.9751,9.962,30.0]
[1672631358627,30.0,9.9749,9.9622,30.0]
[1672631358826,75.31,9.9748,9.9623,20.0]
[1672631359033,30.0,9.9747,9.9624,30.0]
[1672631359267,75.31,9.9746,9.9625,20.0]
[1672631359464,30.0,9.9745,9.9625,20.0]
[1672631359791,30.0,9.9743,9.9625,20.0]
[1672631359994,30.0,9.9741,9.9625,20.0]
[1672631360205,75.32,9.974,9.9625,20.0]
[1672631360523,30.0,9.9739,9.9625,20.0]
[1672631360724,30.0,9.9737,9.9625,20.0]
[1672631360934,30.0,9.9735,9.9626,30.0]
[1672631361157,75.32,9.9734,9.9627,20.0]
[1672631361362,30.0,9.9733,9.9625,20.0]
[1672631361711,30.0,9.9731,9.9625,20.0]
[1672631361905,75.32,9.973,9.9615,20.0]
[1672631362108,30.0,9.9729,9.9614,20.0]
[1672631362315,75.33,9.9728,9.9614,20.0]
[1672631362535,30.0,9.9727,9.9614,20.0]
[1672631362714,30.0,9.9725,9.9615,22.07568638]
[1672631362925,75.33,9.9724,9.9615,22.07568638]
[1672631363256,30.0,9.9723,9.9616,20.0]
[1672631363491,75.33,9.9722,9.9616,20.0]
[1672631363790,30.0,9.9721,9.9616,42.07266195]
[1672631363974,30.0,9.9719,9.9616,42.07266195]
[1672631364191,75.33,9.9718,9.9616,42.07266195]
[1672631364412,30.0,9.9717,9.9616,42.07266195]
[1672631364620,30.0,9.9715,9.9616,42.07266195]
[1672631364844,30.0,9.9713,9.9617,30.0]
[1672631365055,75.34,9.9712,9.9618,20.0]
[1672631365382,30.0,9.9711,9.9618,20.0]
[1672631365799,30.0,9.9709,9.9618,20.0]
[1672631366408,22.8474,9.9708,9.9619,30.0]
[1672631366620,22.8474,9.9708,9.962,20.0]
[1672631366842,30.0,9.9707,9.962,20.0]
[1672631367057,52.8474,9.9707,9.962,20.0]
[1672631367588,22.8474,9.9706,9.9621,30.0]
[1672631367791,22.8474,9.9706,9.9622,20.0]
[1672631368000,22.8474,9.9706,9.9623,30.0]
[1672631368203,22.8474,9.9705,9.9623,30.0]
[1672631368421,22.8474,9.9705,9.9624,20.0]
[1672631368937,24.4417,9.9704,9.9624,20.0]
[1672631369749,24.4417,9.9703,9.9624,20.0]
[1672631370400,24.4417,9.9702,9.9624,20.0]
[1672631371008,24.4417,9.9701,9.9624,20.0]
[1672631371672,24.4417,9.97,9.9624,20.0]
[1672631372295,24.6134,9.9699,9.9624,20.0]
[1672631372910,24.6134,9.9698,9.9624,20.0]
[1672631373537,24.6134,9.9697,9.9624,20.0]
[1672631374618,24.6134,9.9697,9.9625,95.97576172]
[1672631374928,24.6134,9.9697,9.9627,30.0]
[1672631375138,24.6134,9.9697,9.9629,30.0]
[1672631375324,24.6134,9.9697,9.963,20.0]
[1672631375979,24.6134,9.9697,9.9631,30.0]
[1672631376285,24.6134,9.9697,9.9633,30.0]
[1672631376900,24.6134,9.9697,9.9634,20.0]
[1672631379637,24.6134,9.9697,9.9632,20.0]
[1672631379848,24.6134,9.9697,9.9633,30.0]
[1672631380054,24.6134,9.9697,9.9634,20.0]
[1672631380268,24.6134,9.9697,9.9635,30.0]
[1672631380899,24.6134,9.9697,9.9637,30.0]
[1672631381333,24.6134,9.9697,9.9638,20.0]
[1672631381538,24.6134,9.9697,9.9639,30.0]
[1672631381749,24.6134,9.9697,9.964,20.0]
[1672631381958,24.6134,9.9697,9.9641,30.0]
[1672631382485,24.6134,9.9697,9.9642,20.0]
[1672631382909,24.6134,9.9697,9.9643,30.0]
[1672631383311,24.6134,9.9697,9.9644,20.0]
[1672631385651,24.6134,9.9697,9.9645,30.0]
[1672631385846,24.6134,9.9697,9.9646,20.0]
[1672631386166,24.6134,9.9697,9.9647,30.0]
[1672631386361,24.6134,9.9697,9.9649,30.0]
[1672631389954,24.6134,9.9697,9.9647,30.0]
[1672631390148,24.6134,9.9697,9.9648,20.0]
[1672631391619,24.6134,9.9697,9.9649,30.0]
[1672631394788,24.6134,9.9697,9.9648,20.0]
[1672631395004,24.6134,9.9697,9.9646,20.0]
[1672631397945,24.6134,9.9697,9.9647,30.0]
[1672631398366,24.6134,9.9697,9.9648,20.0]
[1672631400758,24.6134,9.9697,9.964,20.0]
[1672631403281,24.6134,9.9697,9.9641,30.0]
[1672631403486,24.6134,9.9697,9.9643,30.0]
[1672631403910,24.6134,9.9697,9.9644,20.0]
[1672631404120,110.976,9.9707,9.9667,74.98285212]
[1672631404333,75.3,9.976,9.9668,111.49285212]
[1672631404544,105.27,9.9796,9.9669,78.0873]
[1672631404768,260.8874,9.9796,9.9671,30.0]
[1672631405084,260.8874,9.9796,9.97,5.72]
[1672631405302,155.6174,9.9795,9.9701,20.0]
[1672631405506,30.0,9.9793,9.9701,20.0]
[1672631405826,30.0,9.9791,9.9701,20.0]
[1672631406142,30.0,9.9791,9.9702,30.0]
[1672631406355,75.28,9.979,9.9703,20.0]
[1672631406547,30.0,9.9789,9.9703,20.0]
[1672631406759,30.0,9.9789,9.9701,20.0]
[1672631407286,30.0,9.9787,9.9701,20.0]
[1672631407919,30.0,9.9785,9.9701,20.0]
[1672631409172,30.0,9.9783,9.9701,20.0]
[1672631409806,30.0,9.9781,9.9701,20.0]
[1672631410443,30.0,9.9779,9.9701,20.0]
[1672631411074,30.0,9.9777,9.9701,20.0]
[1672631411479,23.462,9.9778,9.9702,30.0]
[1672631411692,23.462,9.9776,9.9702,30.0]
[1672631411903,23.462,9.9776,9.9703,20.0]
[1672631412849,23.462,9.9776,9.9701,20.0]
[1672631413060,22.53,9.9775,9.9701,20.0]
[1672631413795,22.53,9.9775,9.9703,30.0]
[1672631414243,22.53,9.9775,9.9704,20.0]
[1672631414431,22.53,9.9775,9.9705,30.0]
[1672631414848,22.53,9.9775,9.9707,30.0]
[1672631415062,22.53,9.9775,9.9709,30.0]
[1672631415393,22.53,9.9775,9.971,20.0]
[1672631416746,22.53,9.9775,9.9708,20.0]
[1672631423491,30.0,9.9774,9.9708,20.0]
[1672631423691,30.0,9.9772,9.9692,20.0]
[1672631423902,75.29,9.9771,9.9692,20.0]
[1672631424112,30.0,9.977,9.9692,20.0]
[1672631424436,30.0,9.9768,9.9692,20.0]
[1672631424651,75.3,9.9767,9.9692,20.0]
[1672631424835,30.0,9.9766,9.9692,20.0]
[1672631425056,30.0,9.9764,9.9692,20.0]
[1672631425258,75.3,9.9763,9.9692,20.0]
[1672631425469,30.0,9.9762,9.9692,20.0]
[1672631425692,75.3,9.9761,9.9692,20.0]
[1672631425905,30.0,9.976,9.9692,20.0]
[1672631431901,30.0,9.9758,9.9692,20.0]
[1672631432124,75.3,9.9757,9.9692,20.0]
[1672631432423,30.0,9.9756,9.9692,20.0]
[1672631432743,30.0,9.9754,9.9692,20.0]
[1672631432938,30.0,9.9752,9.9692,20.0]
[1672631433174,75.31,9.9751,9.9692,20.0]
[1672631433380,30.0,9.975,9.9692,20.0]
[1672631433600,30.0,9.9748,9.9692,20.0]
[1672631433930,30.0,9.9746,9.9692,20.0]
[1672631434240,75.31,9.9745,9.9692,20.0]
[1672631434449,30.0,9.9744,9.9692,20.0]